fUST/lending_fUST_20240902
["ID","MTS","AMOUNT","RATE_DAILY","PERIOD"]
[336851161,1725211839366,-500.0,0.00024657,2]
[336851162,1725211839375,-500.0,0.00024657,2]
[336851163,1725211839386,-524.17276754,0.00024657,2]
[336851164,1725211839395,-500.0,0.00024657,2]
[336851165,1725211839404,-500.0,0.00024657,2]
[336851166,1725211839414,-500.0,0.00024657,2]
[336851167,1725211839426,-500.0,0.00024657,2]
[336851168,1725211839435,-500.0,0.00024657,2]
[336851169,1725211839445,-500.0,0.00024657,2]
[336851170,1725211839454,-204.84754199,0.00024657,2]
[336851171,1725211839463,-500.0,0.00024657,2]
[336851172,1725211839473,-500.0,0.00024657,2]
[336851173,1725211839482,-500.0,0.00024657,2]
[336851174,1725211839492,-495.44253772,0.00024657,2]
[336851175,1725211839501,-500.0,0.00024657,2]
[336851176,1725211839513,-500.0,0.00024657,2]
[336851177,1725211839523,-500.0,0.00024657,2]
[336851178,1725211839533,-500.0,0.00024657,2]
[336851179,1725211839543,-500.0,0.00024657,2]
[336851180,1725211839552,-500.0,0.00024657,2]
[336851181,1725211839561,-500.0,0.00024657,2]
[336851182,1725211839571,-500.0,0.00024657,2]
[336851183,1725211839580,-500.0,0.00024657,2]
[336851184,1725211839589,-500.0,0.00024657,2]
[336851185,1725211839598,-500.0,0.00024657,2]
[336851186,1725211839607,-500.0,0.00024657,2]
[336851187,1725211839617,-500.0,0.00024657,2]
[336851188,1725211839626,-500.0,0.00024657,2]
[336851189,1725211839635,-487.35780852,0.00024657,2]
[336851190,1725211839644,-500.0,0.00024657,2]
[336851191,1725211839654,-500.0,0.00024657,2]
[336851192,1725211839663,-500.0,0.00024657,2]
[336851193,1725211839672,-500.0,0.00024657,2]
[336851194,1725211839681,-500.0,0.00024657,2]
[336851195,1725211839691,-503.3026395,0.00024657,2]
[336851196,1725211839700,-506.44536455,0.00024657,2]
[336851197,1725211839710,-500.0,0.00024657,2]
[336851198,1725211839721,-500.0,0.00024657,2]
[336851199,1725211839732,-500.0,0.00024657,2]
[336851200,1725211839743,-500.0,0.00024657,2]
[336851201,1725211839753,-500.0,0.00024657,2]
[336851202,1725211839765,-500.0,0.00024657,2]
[336851203,1725211839774,-500.0,0.00024657,2]
[336851204,1725211839784,-500.0,0.00024657,2]
[336851205,1725211839794,-500.0,0.00024657,2]
[336851206,1725211839804,-500.0,0.00024657,2]
[336851207,1725211839816,-510.52,0.00024657,2]
[336851208,1725211839827,-500.0,0.00024657,2]
[336851209,1725211839837,-504.69029907,0.00024657,2]
[336851211,1725211839847,-501.83958934,0.00024657,2]
[336851213,1725211839857,-500.0,0.00024657,2]
[336851214,1725211839866,-500.0,0.00024657,2]
[336851215,1725211839875,-500.0,0.00024657,2]
[336851216,1725211839886,-500.0,0.00024657,2]
[336851217,1725211839896,-630.42,0.00024657,2]
[336851218,1725211839906,-500.0,0.00024657,2]
[336851219,1725211839915,-500.0,0.00024657,2]
[336851220,1725211839925,-500.0,0.00024657,2]
[336851222,1725211839934,-500.0,0.00024657,2]
[336851223,1725211839944,-500.0,0.00024657,2]
[336851224,1725211839953,-768.91,0.00024657,2]
[336851225,1725211839963,-500.0,0.00024657,2]
[336851226,1725211839972,-500.0,0.00024657,2]
[336851227,1725211839982,-500.0,0.00024657,2]
[336851228,1725211839991,-500.0,0.00024657,2]
[336851230,1725211840001,-500.0,0.00024657,2]
[336851231,1725211840013,-639.98416241,0.00024657,2]
[336851233,1725211840022,-405.66399711,0.00024657,2]
[336851236,1725211840031,-500.0,0.00024657,2]
[336851237,1725211840041,-500.0,0.00024657,2]
[336851238,1725211840051,-500.0,0.00024657,2]
[336851245,1725211840180,-500.0,0.00024657,2]
[336851246,1725211840213,-500.0,0.00024657,2]
[336851247,1725211840223,-748.03,0.00024657,2]
[336851248,1725211840232,-500.0,0.00024657,2]
[336851249,1725211840242,-239.52337207,0.00024657,2]
[336851250,1725211840251,-500.0,0.00024657,2]
[336851251,1725211840263,-501.51833889,0.00024657,2]
[336851252,1725211840273,-500.0,0.00024657,2]
[336851253,1725211840282,-501.25193342,0.00024657,2]
[336851254,1725211840293,-500.0,0.00024657,2]
[336851255,1725211840303,-500.0,0.00024657,2]
[336851256,1725211840312,-500.0,0.00024657,2]
[336851257,1725211840322,-176.90725055,0.00024657,2]
[336851258,1725211840332,-500.0,0.00024657,2]
[336851259,1725211840342,-502.16297863,0.00024657,2]
[336851260,1725211840352,-200.0,0.00024657,2]
[336851261,1725211840365,-500.0,0.00024657,2]
[336851262,1725211840375,-500.0,0.00024657,2]
[336851263,1725211840384,-500.0,0.00024657,2]
[336851264,1725211840395,-305.46657579,0.00024657,2]
[336851265,1725211840404,-500.0,0.00024657,2]
[336851266,1725211840414,-500.0,0.00024657,2]
[336851267,1725211840424,-500.0,0.00024657,2]
[336851268,1725211840433,-500.0,0.00024657,2]
[336851269,1725211840446,-500.0,0.00024657,2]
[336851270,1725211840456,-169.79,0.00024657,2]
[336851271,1725211840466,-500.0,0.00024657,2]
[336851272,1725211840476,-794.65,0.00024657,2]
[336851273,1725211840486,-509.47967589,0.00024657,2]
[336851274,1725211840496,-500.0,0.00024657,2]
[336851275,1725211840508,-500.0,0.00024657,2]
[336851276,1725211840518,-500.0,0.00024657,2]
[336851277,1725211840527,-500.0,0.00024657,2]
[336851278,1725211840538,-500.0,0.00024657,2]
[336851279,1725211840547,-500.0,0.00024657,2]
[336851280,1725211840557,-500.0,0.00024657,2]
[336851281,1725211840567,-364.89473141,0.00024657,2]
[336851283,1725211840578,-1086.08,0.00024657,2]
[336851285,1725211840588,-500.0,0.00024657,2]
[336851287,1725211840599,-500.0,0.00024657,2]
[336851289,1725211840609,-500.0,0.00024657,2]
[336851291,1725211840621,-754.43,0.00024657,2]
[336851292,1725211840632,-500.0,0.00024657,2]
[336851293,1725211840642,-500.0,0.00024657,2]
[336851294,1725211840651,-504.79594028,0.00024657,2]
[336851295,1725211840661,-612.82,0.00024657,2]
[336851296,1725211840670,-500.0,0.00024657,2]
[336851297,1725211840679,-629.45940246,0.00024657,2]
[336851298,1725211840689,-587.5167475,0.00024657,2]
[336851299,1725211840699,-500.0,0.00024657,2]
[336851300,1725211840709,-500.0,0.00024657,2]
[336851301,1725211840718,-500.0,0.00024657,2]
[336851302,1725211840728,-500.0,0.00024657,2]
[336851303,1725211840738,-500.0,0.00024657,2]
[336851304,1725211840749,-500.0,0.00024657,2]
[336851305,1725211840760,-500.0,0.00024657,2]
[336851306,1725211840769,-500.0,0.00024657,2]
[336851307,1725211840779,-500.0,0.00024657,2]
[336851308,1725211840789,-500.0,0.00024657,2]
[336851309,1725211840799,-500.0,0.00024657,2]
[336851310,1725211840809,-500.0,0.00024657,2]
[336851311,1725211840819,-500.0,0.00024657,2]
[336851312,1725211840829,-500.0,0.00024657,2]
[336851313,1725211840838,-500.0,0.00024657,2]
[336851314,1725211840848,-500.0,0.00024657,2]
[336851315,1725211840858,-392.50524189,0.00024657,2]
[336851316,1725211840868,-545.76850301,0.00024657,2]
[336851317,1725211840878,-500.0,0.00024657,2]
[336851318,1725211840888,-500.0,0.00024657,2]
[336851319,1725211840897,-500.0,0.00024657,2]
[336851320,1725211840907,-500.0,0.00024657,2]
[336851321,1725211840917,-500.0,0.00024657,2]
[336851322,1725211840926,-500.0,0.00024657,2]
[336851323,1725211840936,-500.0,0.00024657,2]
[336851324,1725211840946,-572.8584381,0.00024657,2]
[336851325,1725211840956,-500.0,0.00024657,2]
[336851326,1725211840966,-500.0,0.00024657,2]
[336851327,1725211840976,-500.0,0.00024657,2]
[336851328,1725211840986,-500.0,0.00024657,2]
[336851329,1725211840996,-500.0,0.00024657,2]
[336851330,1725211841006,-500.0,0.00024657,2]
[336851331,1725211841015,-500.0,0.00024657,2]
[336851332,1725211841025,-500.0,0.00024657,2]
[336851333,1725211841034,-502.13154517,0.00024657,2]
[336851334,1725211841044,-500.0,0.00024657,2]
[336851335,1725211841055,-3231.91,0.00024657,2]
[336851336,1725211841065,-500.0,0.00024657,2]
[336851337,1725211841075,-581.1,0.00024657,2]
[336851338,1725211841085,-500.0,0.00024657,2]
[336851339,1725211841094,-432.13686531,0.00024657,2]
[336851340,1725211841104,-500.0,0.00024657,2]
[336851341,1725211841114,-501.813284,0.00024657,2]
[336851342,1725211841124,-500.0,0.00024657,2]
[336851343,1725211841134,-500.0,0.00024657,2]
[336851344,1725211841145,-500.0,0.00024657,2]
[336851345,1725211841155,-902.5,0.00024657,2]
[336851346,1725211841165,-500.0,0.00024657,2]
[336851347,1725211841175,-500.0,0.00024657,2]
[336851348,1725211841184,-500.0,0.00024657,2]
[336851349,1725211841194,-500.0,0.00024657,2]
[336851350,1725211841204,-500.0,0.00024657,2]
[336851351,1725211841213,-500.0,0.00024657,2]
[336851352,1725211841224,-500.0,0.00024657,2]
[336851353,1725211841234,-503.01384065,0.00024657,2]
[336851354,1725211841244,-501.38547877,0.00024657,2]
[336851355,1725211841254,-500.0,0.00024657,2]
[336851356,1725211841266,-1202.55,0.00024657,2]
[336851357,1725211841276,-500.0,0.00024657,2]
[336851358,1725211841285,-500.0,0.00024657,2]
[336851359,1725211841294,-500.0,0.00024657,2]
[336851360,1725211841304,-500.0,0.00024657,2]
[336851361,1725211841315,-500.0,0.00024657,2]
[336851362,1725211841325,-491.15543517,0.00024657,2]
[336851363,1725211841335,-500.0,0.00024657,2]
[336851364,1725211841348,-500.0,0.00024657,2]
[336851365,1725211841358,-500.0,0.00024657,2]
[336851366,1725211841368,-500.0,0.00024657,2]
[336851367,1725211841378,-500.0,0.00024657,2]
[336851368,1725211841390,-500.0,0.00024657,2]
[336851369,1725211841399,-612.07,0.00024657,2]
[336851370,1725211841408,-641.06249764,0.00024657,2]
[336851371,1725211841418,-500.0,0.00024657,2]
[336851372,1725211841429,-505.68812202,0.00024657,2]
[336851373,1725211841439,-500.0,0.00024657,2]
[336851374,1725211841449,-449.62172856,0.00024657,2]
[336851375,1725211841459,-598.8,0.00024657,2]
[336851376,1725211841469,-500.0,0.00024657,2]
[336851377,1725211841479,-500.0,0.00024657,2]
[336851378,1725211841488,-500.0,0.00024657,2]
[336851379,1725211841498,-500.0,0.00024657,2]
[336851380,1725211841511,-500.0,0.00024657,2]
[336851381,1725211841521,-500.0,0.00024657,2]
[336851382,1725211841530,-500.0,0.00024657,2]
[336851383,1725211841540,-500.0,0.00024657,2]
[336851384,1725211841550,-667.28,0.00024657,2]
[336851385,1725211841560,-693.25,0.00024657,2]
[336851386,1725211841570,-500.0,0.00024657,2]
[336851387,1725211841579,-500.0,0.00024657,2]
[336851388,1725211841588,-500.0,0.00024657,2]
[336851389,1725211841598,-500.0,0.00024657,2]
[336851390,1725211841608,-500.0,0.00024657,2]
[336851391,1725211841617,-500.0,0.00024657,2]
[336851392,1725211841626,-500.0,0.00024657,2]
[336851393,1725211841636,-525.86,0.00024657,2]
[336851394,1725211841645,-500.0,0.00024657,2]
[336851395,1725211841655,-500.0,0.00024657,2]
[336851396,1725211841664,-500.0,0.00024657,2]
[336851397,1725211841674,-500.0,0.00024657,2]
[336851398,1725211841683,-500.0,0.00024657,2]
[336851399,1725211841693,-500.0,0.00024657,2]
[336851400,1725211841703,-500.0,0.00024657,2]
[336851401,1725211841712,-500.0,0.00024657,2]
[336851402,1725211841722,-500.0,0.00024657,2]
[336851403,1725211841731,-504.55543037,0.00024657,2]
[336851404,1725211841741,-500.0,0.00024657,2]
[336851405,1725211841751,-500.0,0.00024657,2]
[336851406,1725211841763,-500.0,0.00024657,2]
[336851407,1725211841773,-545.68,0.00024657,2]
[336851408,1725211841782,-629.93,0.00024657,2]
[336851409,1725211841791,-500.0,0.00024657,2]
[336851410,1725211841801,-500.0,0.00024657,2]
[336851411,1725211841810,-500.0,0.00024657,2]
[336851412,1725211841820,-500.0,0.00024657,2]
[336851413,1725211841829,-500.0,0.00024657,2]
[336851414,1725211841839,-500.0,0.00024657,2]
[336851415,1725211841848,-500.0,0.00024657,2]
[336851416,1725211841858,-500.0,0.00024657,2]
[336851417,1725211841868,-500.0,0.00024657,2]
[336851418,1725211841877,-500.0,0.00024657,2]
[336851419,1725211841887,-500.0,0.00024657,2]
[336851420,1725211841896,-500.0,0.00024657,2]
[336851421,1725211841906,-500.0,0.00024657,2]
[336851422,1725211841915,-500.0,0.00024657,2]
[336851423,1725211841926,-500.0,0.00024657,2]
[336851424,1725211841935,-500.0,0.00024657,2]
[336851425,1725211841945,-502.7458802,0.00024657,2]
[336851426,1725211841954,-500.0,0.00024657,2]
[336851427,1725211841964,-500.0,0.00024657,4]
[336851428,1725211841974,-500.0,0.00024657,2]
[336851429,1725211841983,-500.0,0.00024657,2]
[336851430,1725211841993,-500.0,0.00024657,2]
[336851431,1725211842003,-500.93254474,0.00024657,2]
[336851432,1725211842017,-500.0,0.00024657,2]
[336851433,1725211842027,-500.0,0.00024657,2]
[336851434,1725211842037,-417.32387967,0.00024657,2]
[336851435,1725211842047,-500.0,0.00024657,2]
[336851436,1725211842057,-500.0,0.00024657,2]
[336851437,1725211842066,-500.0,0.00024657,2]
[336851438,1725211842076,-500.0,0.00024657,2]
[336851439,1725211842085,-574.6,0.00024657,2]
[336851440,1725211842095,-406.17388176,0.00024657,2]
[336851441,1725211842105,-493.54742001,0.00024657,2]
[336851442,1725211842115,-985.83,0.00024657,2]
[336851443,1725211842124,-1271.86,0.00024657,2]
[336851444,1725211842134,-500.0,0.00024657,2]
[336851445,1725211842143,-500.0,0.00024657,2]
[336851446,1725211842153,-500.0,0.00024657,2]
[336851447,1725211842162,-500.0,0.00024657,2]
[336851448,1725211842171,-624.00925403,0.00024657,2]
[336851449,1725211842181,-536.85408094,0.00024657,2]
[336851450,1725211842191,-500.0,0.00024657,2]
[336851451,1725211842200,-500.0,0.00024657,2]
[336851452,1725211842209,-500.0,0.00024657,2]
[336851453,1725211842219,-1000.24,0.00024657,2]
[336851454,1725211842228,-501.18504295,0.00024657,2]
[336851455,1725211842237,-500.0,0.00024657,2]
[336851456,1725211842247,-722.61,0.00024657,2]
[336851457,1725211842257,-500.0,0.00024657,2]
[336851458,1725211842267,-757.54,0.00024657,2]
[336851459,1725211842276,-500.0,0.00024657,2]
[336851460,1725211842286,-500.0,0.00024657,2]
[336851461,1725211842295,-2040.16,0.00024657,2]
[336851462,1725211842305,-500.0,0.00024657,2]
[336851463,1725211842314,-502.77940951,0.00024657,2]
[336851464,1725211842324,-527.51,0.00024657,2]
[336851465,1725211842334,-500.0,0.00024657,2]
[336851466,1725211842344,-522.95674367,0.00024657,2]
[336851467,1725211842355,-500.0,0.00024657,2]
[336851468,1725211842366,-500.0,0.00024657,2]
[336851469,1725211842375,-500.0,0.00024657,2]
[336851470,1725211842385,-500.0,0.00024657,2]
[336851471,1725211842394,-500.0,0.00024657,2]
[336851472,1725211842404,-500.0,0.00024657,2]
[336851473,1725211842414,-500.0,0.00024657,2]
[336851474,1725211842424,-500.0,0.00024657,2]
[336851475,1725211842436,-500.0,0.00024657,2]
[336851476,1725211842445,-500.0,0.00024657,2]
[336851477,1725211842454,-1543.26,0.00024657,2]
[336851478,1725211842464,-500.0,0.00024657,2]
[336851479,1725211842473,-500.0,0.00024657,2]
[336851480,1725211842483,-500.0,0.00024657,2]
[336851481,1725211842493,-38.61482479,0.00024657,2]
[336851486,1725211842834,-461.38517521,0.00024657,2]
[336851487,1725211842844,-166.76014179,0.00024657,2]
[336851501,1725211843092,-333.23985821,0.00024657,2]
[336851502,1725211843102,-500.0,0.00024657,2]
[336851503,1725211843112,-501.55591745,0.00024657,2]
[336851505,1725211843121,-535.5,0.00024657,2]
[336851507,1725211843131,-500.0,0.00024657,2]
[336851509,1725211843141,-500.0,0.00024657,2]
[336851512,1725211843150,-500.0,0.00024657,2]
[336851514,1725211843160,-2336.07,0.00024657,2]
[336851515,1725211843169,-500.0,0.00024657,2]
[336851516,1725211843178,-500.0,0.00024657,2]
[336851517,1725211843188,-1532.69,0.00024657,2]
[336851518,1725211843197,-500.0,0.00024657,2]
[336851519,1725211843207,-508.98476522,0.00024657,2]
[336851520,1725211843216,-500.0,0.00024657,2]
[336851521,1725211843226,-500.0,0.00024657,2]
[336851522,1725211843235,-500.0,0.00024657,2]
[336851523,1725211843245,-500.0,0.00024657,2]
[336851524,1725211843255,-500.0,0.00024657,2]
[336851525,1725211843265,-542.43,0.00024657,2]
[336851526,1725211843274,-500.0,0.00024657,2]
[336851527,1725211843283,-500.0,0.00024657,2]
[336851528,1725211843293,-939.44,0.00024657,2]
[336851530,1725211843302,-67.92690962,0.00024657,2]
[336851539,1725211843533,-432.07309038,0.00024657,2]
[336851540,1725211843543,-500.0,0.00024657,2]
[336851541,1725211843552,-547.8,0.00024657,2]
[336851542,1725211843562,-1350.53,0.00024657,2]
[336851543,1725211843572,-500.0,0.00024657,2]
[336851544,1725211843581,-500.0,0.00024657,2]
[336851545,1725211843591,-500.0,0.00024657,2]
[336851546,1725211843601,-500.0,0.00024657,2]
[336851547,1725211843610,-500.0,0.00024657,2]
[336851548,1725211843619,-464.49690962,0.00024657,2]
[336851549,1725211843728,-176.66309038,0.00024657,2]
[336851550,1725211843738,-1389.88,0.00024657,2]
[336851551,1725211843748,-584.48848356,0.00024657,2]
[336851552,1725211843759,-500.0,0.00024657,2]
[336851553,1725211843770,-500.0,0.00024657,2]
[336851554,1725211843779,-500.0,0.00024657,2]
[336851555,1725211843794,-500.0,0.00024657,2]
[336851556,1725211843804,-500.0,0.00024657,2]
[336851557,1725211843814,-537.43010146,0.00024657,2]
[336851558,1725211843823,-1020.95,0.00024657,2]
[336851559,1725211843834,-500.0,0.00024657,2]
[336851560,1725211843844,-654.03,0.00024657,2]
[336851561,1725211843853,-500.0,0.00024657,2]
[336851562,1725211843863,-500.0,0.00024657,2]
[336851563,1725211843873,-507.03,0.00024657,2]
[336851564,1725211843883,-485.92556822,0.00024657,2]
[336851565,1725211843892,-1613.77,0.00024657,2]
[336851566,1725211843902,-500.0,0.00024657,2]
[336851567,1725211843912,-290.23250147,0.00024657,2]
[336851568,1725211843922,-500.0,0.00024657,2]
[336851569,1725211843932,-500.0,0.00024657,2]
[336851570,1725211843941,-500.0,0.00024657,2]
[336851571,1725211843951,-500.0,0.00024657,2]
[336851572,1725211843960,-500.0,0.00024657,2]
[336851573,1725211843970,-500.0,0.00024657,2]
[336851574,1725211843979,-500.0,0.00024657,2]
[336851575,1725211843989,-500.0,0.00024657,2]
[336851576,1725211843998,-500.0,0.00024657,2]
[336851577,1725211844012,-502.93525691,0.00024657,2]
[336851578,1725211844022,-500.0,0.00024657,2]
[336851579,1725211844031,-500.0,0.00024657,2]
[336851580,1725211844041,-500.0,0.00024657,2]
[336851581,1725211844050,-500.0,0.00024657,2]
[336851582,1725211844060,-500.0,0.00024657,2]
[336851583,1725211844070,-1996.21,0.00024657,2]
[336851584,1725211844079,-500.0,0.00024657,2]
[336851585,1725211844089,-662.07,0.00024657,2]
[336851586,1725211844098,-758.95,0.00024657,2]
[336851587,1725211844108,-500.0,0.00024657,2]
[336851588,1725211844118,-2800.96,0.00024657,2]
[336851589,1725211844127,-717.43,0.00024657,2]
[336851590,1725211844137,-500.0,0.00024657,2]
[336851591,1725211844147,-1884.55,0.00024657,2]
[336851592,1725211844157,-509.68234293,0.00024657,2]
[336851593,1725211844167,-500.0,0.00024657,2]
[336851594,1725211844176,-500.0,0.00024657,2]
[336851595,1725211844186,-500.0,0.00024657,2]
[336851596,1725211844195,-505.40270031,0.00024657,2]
[336851597,1725211844205,-500.0,0.00024657,2]
[336851598,1725211844215,-1991.74,0.00024657,2]
[336851599,1725211844226,-1519.46,0.00024657,2]
[336851600,1725211844235,-500.0,0.00024657,2]
[336851601,1725211844245,-500.0,0.00024657,2]
[336851602,1725211844256,-500.0,0.00024657,2]
[336851603,1725211844267,-500.0,0.00024657,2]
[336851604,1725211844277,-500.0,0.00024657,2]
[336851605,1725211844287,-984.42,0.00024657,2]
[336851606,1725211844296,-1569.23,0.00024657,2]
[336851607,1725211844306,-500.0,0.00024657,2]
[336851608,1725211844316,-268.47265207,0.00024657,2]
[336851609,1725211844325,-500.0,0.00024657,2]
[336851610,1725211844334,-680.38,0.00024657,2]
[336851611,1725211844345,-693.1,0.00024657,2]
[336851612,1725211844356,-610.36482158,0.00024657,2]
[336851613,1725211844367,-500.0,0.00024657,2]
[336851614,1725211844377,-500.0,0.00024657,2]
[336851615,1725211844386,-500.0,0.00024657,2]
[336851616,1725211844397,-500.0,0.00024657,2]
[336851617,1725211844407,-13594.53,0.00024657,2]
[336851618,1725211844416,-677.63,0.00024657,2]
[336851619,1725211844425,-500.0,0.00024657,2]
[336851620,1725211844438,-500.0,0.00024657,2]
[336851621,1725211844447,-500.0,0.00024657,2]
[336851622,1725211844457,-500.0,0.00024657,2]
[336851623,1725211844467,-500.0,0.00024657,2]
[336851624,1725211844476,-3302.42,0.00024657,2]
[336851625,1725211844486,-500.0,0.00024657,2]
[336851626,1725211844495,-764.29,0.00024657,2]
[336851627,1725211844507,-645.11,0.00024657,2]
[336851628,1725211844516,-500.0,0.00024657,2]
[336851629,1725211844526,-500.0,0.00024657,2]
[336851630,1725211844535,-500.0,0.00024657,2]
[336851631,1725211844545,-500.0,0.00024657,2]
[336851632,1725211844555,-1414.98,0.00024657,2]
[336851633,1725211844564,-1820.25,0.00024657,2]
[336851634,1725211844573,-500.0,0.00024657,2]
[336851635,1725211844582,-500.0,0.00024657,2]
[336851636,1725211844591,-508.37158568,0.00024657,2]
[336851637,1725211844601,-391.47411515,0.00024657,2]
[336851638,1725211844610,-500.0,0.00024657,2]
[336851639,1725211844619,-500.0,0.00024657,2]
[336851640,1725211844628,-523.37598791,0.00024657,2]
[336851641,1725211844637,-500.0,0.00024657,2]
[336851642,1725211844646,-500.0,0.00024657,2]
[336851643,1725211844657,-500.0,0.00024657,2]
[336851644,1725211844666,-500.0,0.00024657,2]
[336851645,1725211844675,-937.31,0.00024657,2]
[336851646,1725211844685,-500.0,0.00024657,2]
[336851647,1725211844694,-500.0,0.00024657,2]
[336851648,1725211844703,-500.0,0.00024657,2]
[336851649,1725211844712,-2149.78,0.00024657,2]
[336851650,1725211844721,-2411.19,0.00024657,2]
[336851651,1725211844730,-500.0,0.00024657,2]
[336851652,1725211844740,-2775.51,0.00024657,2]
[336851653,1725211844749,-502.1027319,0.00024657,2]
[336851654,1725211844761,-500.0,0.00024657,2]
[336851655,1725211844770,-1653.26,0.00024657,2]
[336851656,1725211844779,-500.0,0.00024657,2]
[336851657,1725211844788,-500.0,0.00024657,2]
[336851658,1725211844798,-269.84241401,0.00024657,2]
[336851659,1725211844807,-780.69,0.00024657,2]
[336851660,1725211844816,-1054.06,0.00024657,2]
[336851661,1725211844825,-500.0,0.00024657,2]
[336851662,1725211844835,-500.0,0.00024657,2]
[336851663,1725211844844,-1729.94,0.00024657,2]
[336851664,1725211844854,-500.0,0.00024657,2]
[336851665,1725211844863,-1471.87,0.00024657,2]
[336851666,1725211844873,-500.0,0.00024657,2]
[336851667,1725211844882,-1324.57,0.00024657,2]
[336851668,1725211844892,-500.0,0.00024657,2]
[336851669,1725211844901,-500.0,0.00024657,2]
[336851670,1725211844911,-500.0,0.00024657,2]
[336851671,1725211844921,-500.0,0.00024657,2]
[336851672,1725211844931,-500.0,0.00024657,2]
[336851673,1725211844940,-500.0,0.00024657,2]
[336851674,1725211844950,-500.0,0.00024657,2]
[336851675,1725211844959,-500.0,0.00024657,2]
[336851676,1725211844969,-500.0,0.00024657,2]
[336851677,1725211844978,-500.0,0.00024657,2]
[336851678,1725211844988,-500.0,0.00024657,2]
[336851679,1725211844998,-500.0,0.00024657,2]
[336851680,1725211845011,-2700.66,0.00024657,2]
[336851681,1725211845020,-1664.99,0.00024657,2]
[336851682,1725211845030,-642.68,0.00024657,2]
[336851683,1725211845040,-500.0,0.00024657,2]
[336851684,1725211845049,-500.0,0.00024657,2]
[336851685,1725211845059,-500.62487102,0.00024657,2]
[336851686,1725211845069,-500.0,0.00024657,2]
[336851687,1725211845079,-500.0,0.00024657,2]
[336851688,1725211845089,-511.34820436,0.00024657,2]
[336851689,1725211845099,-500.0,0.00024657,2]
[336851690,1725211845108,-484.01926431,0.00024657,2]
[336851691,1725211845119,-1069.27,0.00024657,2]
[336851692,1725211845128,-500.0,0.00024657,2]
[336851693,1725211845138,-1236.36,0.00024657,2]
[336851694,1725211845147,-500.0,0.00024657,2]
[336851696,1725211845157,-1360.11,0.00024657,2]
[336851698,1725211845167,-500.0,0.00024657,2]
[336851699,1725211845177,-500.0,0.00024657,2]
[336851700,1725211845186,-500.0,0.00024657,2]
[336851701,1725211845196,-500.0,0.00024657,2]
[336851702,1725211845360,-500.0,0.00024657,2]
[336851703,1725211845371,-500.0,0.00024657,2]
[336851704,1725211845380,-1246.0,0.00024657,2]
[336851705,1725211845390,-500.0,0.00024657,2]
[336851706,1725211845400,-500.0,0.00024657,2]
[336851707,1725211845409,-1242.95,0.00024657,2]
[336851708,1725211845418,-500.0,0.00024657,2]
[336851709,1725211845431,-815.79,0.00024657,2]
[336851710,1725211845441,-7047.65,0.00024657,2]
[336851711,1725211845451,-500.0,0.00024657,2]
[336851712,1725211845460,-1214.71,0.00024657,2]